fUSD/lending_fUSD_20250630
["ID","MTS","AMOUNT","RATE_DAILY","PERIOD"]
[368657803,1751267504927,-872.29,0.00017534,2]
[368657804,1751267504936,-1254.71,0.00017534,2]
[368657805,1751267504946,-631.18,0.00017534,2]
[368657806,1751267504956,-550.61,0.00017534,2]
[368657807,1751267504965,-490.0,0.00017534,2]
[368657808,1751267504974,-504.35,0.00017534,2]
[368657809,1751267504983,-10210.71,0.00017534,2]
[368657810,1751267504993,-491.98,0.00017534,2]
[368657811,1751267505003,-651.38,0.00017534,2]
[368657812,1751267505013,-1900.12,0.00017534,2]
[368657813,1751267505022,-1731.14,0.00017534,2]
[368657814,1751267505031,-5197.94,0.00017534,2]
[368657815,1751267505041,-13993.99,0.00017534,2]
[368657816,1751267505050,-490.0,0.00017534,2]
[368657817,1751267505059,-2525.38,0.00017534,2]
[368657818,1751267505069,-533.98,0.00017534,2]
[368657819,1751267505078,-490.0,0.00017534,2]
[368657820,1751267505088,-490.0,0.00017534,2]
[368657821,1751267505097,-3419.33,0.00017534,2]
[368657822,1751267505110,-902.63,0.00017534,2]
[368657823,1751267505119,-2697.11,0.00017534,2]
[368657824,1751267505128,-490.0,0.00017534,2]
[368657825,1751267505137,-490.0,0.00017534,2]
[368657826,1751267505147,-490.0,0.00017534,2]
[368657827,1751267505156,-490.0,0.00017534,2]
[368657828,1751267505166,-490.0,0.00017534,2]
[368657829,1751267505177,-1373.3,0.00017534,2]
[368657830,1751267505186,-574.91184723,0.00017534,2]
[368657831,1751267505195,-8500.47,0.00017534,2]
[368657832,1751267505204,-2503.77,0.00017534,2]
[368657833,1751267505213,-875.86,0.00017534,2]
[368657834,1751267505222,-499.99925956,0.00017534,2]
[368657835,1751267505232,-2775.07,0.00017534,2]
[368657836,1751267505241,-490.0,0.00017534,2]
[368657837,1751267505250,-759.92166522,0.00017565,2]
[368657838,1751267505259,-150.0,0.0001759,2]
[368657839,1751267505269,-246.94673735,0.00017636,2]
[368657840,1751267505278,-576.58954985,0.00017643,2]
[368657841,1751267505288,-150.0,0.00017644,2]
[368657842,1751267505297,-150.0,0.00017644,2]
[368657843,1751267505307,-1862.0,0.00017644,2]
[368657844,1751267505317,-500.0,0.00017644,2]
[368657845,1751267505326,-150.0,0.00017644,2]
[368657846,1751267505335,-150.0,0.00017644,2]
[368657847,1751267505344,-150.0,0.00017644,2]
[368657848,1751267505354,-500.0,0.00017644,2]
[368657849,1751267505363,-500.0,0.00017644,2]
[368657850,1751267505373,-250.0,0.00017644,2]
[368657851,1751267505382,-500.0,0.00017644,2]
[368657852,1751267505392,-500.0,0.00017644,2]
[368657853,1751267505401,-210.0,0.00017644,2]
[368657854,1751267505410,-475.0,0.00017644,2]
[368657855,1751267505420,-4402.23764854,0.00017645,2]
[368657856,1751267505429,-21589.68188859,0.00017645,2]
[368657857,1751267505439,-223.0,0.00017652,2]
[368657858,1751267505448,-150.0,0.00017665,2]
[368657859,1751267505457,-198.0,0.00017666,2]
[368657860,1751267505467,-1500.0,0.00017668,2]
[368657861,1751267505476,-918.52265263,0.00017668,2]
[368657862,1751267505486,-1500.0,0.00017668,2]
[368657863,1751267505496,-512.54222407,0.00017668,2]
[368657864,1751267505506,-1001.95840124,0.00017668,2]
[368657865,1751267505516,-1500.0,0.00017668,2]
[368657866,1751267505526,-1500.0,0.00017668,2]
[368657867,1751267505535,-505.49933158,0.00017668,2]
[368657868,1751267505544,-1500.0,0.00017668,2]
[368657869,1751267505554,-970.95770792,0.00017668,2]
[368657870,1751267505563,-1510.22727199,0.00017668,2]
[368657871,1751267505572,-1500.0,0.00017668,2]
[368657872,1751267505581,-1375.50705092,0.00017668,2]
[368657873,1751267505591,-1500.0,0.00017668,2]
[368657874,1751267505600,-528.13943181,0.00017668,2]
[368657875,1751267505610,-490.0,0.00017684,2]
[368657876,1751267505619,-999.22,0.00017684,2]
[368657877,1751267505628,-792.62,0.00017684,2]
[368657878,1751267505638,-490.0,0.00017684,2]
[368657879,1751267505647,-510.47,0.00017684,2]
[368657880,1751267505656,-490.0,0.00017684,2]
[368657881,1751267505665,-985.32,0.00017684,2]
[368657882,1751267505675,-746.72,0.00017684,2]
[368657883,1751267505684,-840.19,0.00017684,2]
[368657884,1751267505694,-490.0,0.00017684,2]
[368657885,1751267505703,-562.45,0.00017684,2]
[368657886,1751267505711,-490.0,0.00017684,2]
[368657887,1751267505720,-490.0,0.00017684,2]
[368657888,1751267505729,-490.0,0.00017684,2]
[368657889,1751267505738,-550.13,0.00017684,2]
[368657890,1751267505747,-729.57,0.00017684,2]
[368657891,1751267505756,-590.34,0.00017684,2]
[368657892,1751267505765,-504.92,0.00017684,2]
[368657893,1751267505774,-1099.05,0.00017684,2]
[368657894,1751267505784,-744.50653962,0.000177,2]
[368657895,1751267505793,-297.32713814,0.00017708,2]
[368657896,1751267505802,-152.0,0.0001771,3]
[368657897,1751267505812,-1184.0,0.00017721,2]
[368657898,1751267505822,-232.3,0.0001774,2]
[368657899,1751267505831,-22902410.19339536,0.00017788,7]
[368657900,1751267506747,-20184.30895935,0.00017788,7]
[368657901,1751267506762,-5952.37199448,0.00017788,7]
[368657902,1751267507386,-709.96,0.00015329,2]
[368657903,1751267507396,-500.0,0.00016236,2]
[368657904,1751267507406,-599.71933367,0.00016379,2]
[368657905,1751267507418,-201.48875509,0.00016379,2]
[368657906,1751267507428,-151.0,0.00016438,2]
[368657907,1751267507438,-151.0,0.00016592,2]
[368657908,1751267507449,-769.60571136,0.00016592,2]
[368657909,1751267507458,-41.78575425,0.00017019,2]
[368657910,1751267507482,-844.21424575,0.00017019,2]
[368657911,1751267507492,-358.18575425,0.00017534,2]
[368657912,1751267507524,-1911.80424575,0.00017534,2]
[368657913,1751267507535,-1179.86,0.00017534,2]
[368657914,1751267507544,-8618.28832106,0.00017788,7]
[368657915,1751267507557,-538.1,0.00017788,7]
[368657916,1751267507865,-1042.05882657,0.00017788,7]
[368657917,1751267507977,-472.33138366,0.00015096,2]
[368657918,1751267508773,-4721.14815632,0.00015096,2]
[368657919,1751267508783,-1805.33,0.00016438,2]
[368657920,1751267508792,-151.0,0.00016438,2]
[368657921,1751267508802,-649.43,0.00016438,2]
[368657922,1751267508811,-220.68418092,0.00016607,2]
[368657923,1751267508821,-1805.33,0.00016712,2]
[368657924,1751267508831,-649.43,0.00016712,2]
[368657925,1751267508840,-1805.33,0.00016986,2]
[368657926,1751267508849,-649.43,0.00016986,2]
[368657927,1751267508859,-298.646,0.00017019,2]
[368657928,1751267508869,-1805.33,0.0001726,2]
[368657929,1751267508878,-649.43,0.0001726,2]
[368657930,1751267508887,-1805.33,0.00017534,2]
[368657931,1751267508897,-649.43,0.00017534,2]
[368657932,1751267508907,-1734.87336875,0.00017643,2]
[368657933,1751267508916,-165166.83257329,0.00017788,7]
[368657934,1751267508928,-558.31833141,0.00017788,7]
[368657935,1751267508939,-4024.78808168,0.00017788,7]
[368657936,1751267508952,-2081.80298648,0.00017788,7]
[368657937,1751267508963,-788.09206332,0.00017788,7]
[368657938,1751267508983,-664.05658032,0.00017788,7]
[368657939,1751267508994,-5240.05443743,0.00017788,7]
[368657940,1751267509975,-3231.56126291,0.00016238,2]
[368657941,1751267509985,-151.05397358,0.00016238,2]
[368657942,1751267509994,-500.0,0.00016437,2]
[368657943,1751267510003,-237.42873013,0.00016437,2]
[368657944,1751267510013,-500.0,0.00016437,2]
[368657945,1751267510022,-255.83330819,0.00016438,2]
[368657946,1751267510032,-490.0,0.00016438,2]
[368657947,1751267510042,-490.0,0.00016438,2]
[368657948,1751267510051,-144.04086073,0.00016438,2]
[368657949,1751267510318,-2360.18816503,0.00016438,2]
[368657950,1751267510330,-4550.80000004,0.00016438,2]
[368657951,1751267510342,-2423.3309742,0.00016438,2]
[368657952,1751267510352,-220.68418092,0.000167,2]
[368657953,1751267510361,-490.0,0.00016712,2]
[368657954,1751267510370,-585.37368692,0.00016712,2]
[368657955,1751267510379,-6837.61115796,0.00016712,2]
[368657956,1751267570921,200.0,0.00015491,7]
[368657962,1751267879916,2266.00341307,0.00027,120]
[368657964,1751267918401,298.22,0.00027397,120]
[368657971,1751268038607,438.02,0.00013699,2]
[368657976,1751268171265,1299.7,0.00027397,120]
[368657977,1751268202335,2202.0,0.0002111,30]
[368657992,1751268311557,82000.0,0.00014,2]
[368657994,1751268478730,88775.57864,0.00014,2]
[368658038,1751268632495,-511.0,0.00014273,2]
[368658039,1751268632505,-215.35,0.00014551,2]
[368658040,1751268632514,-730.97,0.00014597,2]
[368658041,1751268632523,-300.0,0.00014717,2]
[368658042,1751268632532,-38.92667564,0.00014717,2]
[368658043,1751268632547,-1161.07332436,0.00014717,2]
[368658044,1751268632556,-853.9903974,0.00014718,2]
[368658045,1751268632567,-2687.42860783,0.00014718,2]
[368658046,1751268632590,-23158.66807984,0.00014718,2]
[368658047,1751268632601,-1413.48841449,0.00014718,2]
[368658048,1751268632612,-2993.70558463,0.00014718,2]
[368658049,1751268632623,-1639.63891581,0.00014718,2]
[368658050,1751268632634,-167.64,0.00014778,2]
[368658051,1751268632644,-7918.67,0.00014786,2]
[368658052,1751268632655,-22596.02668419,0.00014787,2]
[368658054,1751268632691,-553.57,0.00014787,2]
[368658056,1751268632702,-750.40331581,0.00014787,2]
[368658058,1751268632712,-200.0,0.00014797,2]
[368658060,1751268632722,-774.96,0.00014807,2]
[368658062,1751268632731,-167.41,0.00014807,2]
[368658064,1751268632742,-200.0,0.00014808,2]
[368658066,1751268632751,-3090.67145637,0.00015,2]
[368658068,1751268632762,-936.79460021,0.00015,2]
[368658070,1751268632773,-364.73919525,0.00015,2]
[368658072,1751268632784,-2948.35011796,0.00015,2]
[368658073,1751268632800,-539.41253696,0.00015,2]
[368658074,1751268632829,-1609.03209325,0.00015,2]
[368658075,1751268632838,-250.0,0.00015,2]
[368658076,1751268632847,-151.0,0.00015087,2]
[368658077,1751268632856,-37001.15495937,0.00015096,2]
[368658078,1751268632865,-212.0,0.00015138,2]
[368658079,1751268632873,-166.78,0.00015145,2]
[368658080,1751268632881,-850.94,0.00015274,2]
[368658081,1751268632890,-850.94,0.00015279,2]
[368658082,1751268632899,-850.94,0.00015283,2]
[368658083,1751268632908,-850.94,0.00015287,2]
[368658084,1751268632918,-850.94,0.00015291,2]
[368658085,1751268632927,-850.94,0.00015295,2]
[368658086,1751268632936,-850.94,0.00015299,2]
[368658087,1751268632946,-850.94,0.00015303,2]
[368658088,1751268632955,-850.94,0.00015307,2]
[368658089,1751268632964,-850.94,0.00015311,2]
[368658090,1751268632973,-250.0,0.00015313,2]
[368658091,1751268632983,-850.94,0.00015315,2]
[368658092,1751268632992,-850.94,0.00015319,2]
[368658093,1751268633001,-850.94,0.00015323,2]
[368658094,1751268633010,-850.94,0.00015327,2]
[368658095,1751268633020,-850.94,0.00015331,2]
[368658096,1751268633029,-850.94,0.00015335,2]
[368658097,1751268633039,-850.94,0.00015339,2]
[368658098,1751268633048,-850.94,0.00015343,2]
[368658099,1751268633058,-850.94,0.00015347,2]
[368658100,1751268633068,-223.0,0.00015348,2]
[368658101,1751268633078,-850.94,0.00015351,2]
[368658102,1751268633087,-223.0,0.00015408,2]
[368658103,1751268633097,-568.27,0.0001542,2]
[368658104,1751268633106,-1000.0,0.00015435,2]
[368658105,1751268633116,-14650.68,0.00015436,2]
[368658106,1751268633126,-1000.0,0.0001549,2]
[368658107,1751268633135,-223.43848005,0.00015525,2]
[368658108,1751268633147,-736.40151995,0.00015525,2]
[368658109,1751268633156,-290.0,0.00015564,2]
[368658110,1751268633166,-1223.0,0.00015621,2]
[368658111,1751268633176,-1000.0,0.00015621,2]
[368658112,1751268633186,-616.0,0.0001566,2]
[368658113,1751268633195,-1079.0,0.0001568,2]
[368658114,1751268633204,-1000.0,0.000157,5]
[368658115,1751268633213,-1000.0,0.000157,4]
[368658116,1751268633223,-1211.0,0.0001571,2]
[368658117,1751268633232,-1211.0,0.00015718,2]
[368658118,1751268633242,-184.0,0.00015738,2]
[368658119,1751268633251,-2000.0,0.000158,5]
[368658120,1751268633261,-1211.0,0.00015886,2]
[368658121,1751268633270,-3000.0,0.000159,5]
[368658122,1751268633279,-1211.0,0.00015989,2]
[368658123,1751268633289,-300.0,0.00015992,2]
[368658124,1751268633298,-1000.0,0.00015992,2]
[368658125,1751268633307,-636.99495754,0.00015992,2]
[368658126,1751268633316,-6912.642,0.00015992,2]
[368658127,1751268633326,-668.65185757,0.00015992,2]
[368658128,1751268633335,-500.0,0.00015992,2]
[368658129,1751268633344,-500.0,0.00015992,2]
[368658130,1751268633353,-500.0,0.00015992,2]
[368658131,1751268633363,-500.0,0.00015992,2]
[368658132,1751268633372,-500.0,0.00015992,2]
[368658133,1751268633381,-500.0,0.00015992,2]
[368658134,1751268633390,-500.0,0.00015992,2]
[368658135,1751268633400,-500.0,0.00015992,2]
[368658136,1751268633409,-207.4,0.00015992,2]
[368658137,1751268633418,-500.0,0.00015992,2]
[368658138,1751268633427,-500.0,0.00015992,2]
[368658139,1751268633437,-500.0,0.00015992,2]
[368658140,1751268633446,-300.0,0.00015992,2]
[368658141,1751268633455,-500.0,0.00015992,2]
[368658142,1751268633465,-300.0,0.00015992,2]
[368658143,1751268633474,-500.0,0.00015992,2]
[368658144,1751268633484,-300.0,0.00015992,2]
[368658145,1751268633494,-500.0,0.00015992,2]
[368658146,1751268633503,-300.0,0.00015992,2]
[368658147,1751268633513,-500.0,0.00015992,2]
[368658148,1751268633522,-300.0,0.00015992,2]
[368658149,1751268633532,-500.0,0.00015992,2]
[368658150,1751268633542,-300.0,0.00015992,2]
[368658151,1751268633551,-500.0,0.00015992,2]
[368658152,1751268633561,-300.0,0.00015992,2]
[368658153,1751268633571,-500.0,0.00015992,2]
[368658154,1751268633582,-300.0,0.00015992,2]
[368658155,1751268633592,-500.0,0.00015992,2]
[368658156,1751268633602,-300.0,0.00015992,2]
[368658157,1751268633611,-300.0,0.00015992,2]
[368658158,1751268633621,-381.88373645,0.00015992,2]
[368658159,1751268633631,-1211.0,0.00016045,2]
[368658160,1751268633641,-3042.14400001,0.00016047,2]
[368658161,1751268633650,-1458.04477697,0.00016113,2]
[368658162,1751268634279,-1660.63821019,0.00016113,2]
[368658163,1751268638194,-184.35328092,0.00014617,2]
[368658164,1751268638203,-3679.43439228,0.00016113,2]
[368658165,1751268638213,-234.0,0.00016135,2]
[368658166,1751268638222,-1211.0,0.00016169,2]
[368658167,1751268638231,-1680.0,0.00016189,2]
[368658168,1751268638240,-36219.0771,0.00016194,2]
[368658169,1751268638250,-6798.11737944,0.00016229,2]
[368658170,1751268638259,-420.87249344,0.00016236,2]
[368658171,1751268638268,-581.50678503,0.00016236,2]
[368658172,1751268638277,-500.0,0.00016236,2]
[368658173,1751268638287,-605.50542496,0.00016236,2]
[368658174,1751268638296,-869.032,0.00016237,2]
[368658175,1751268638306,-500.0,0.00016237,2]
[368658176,1751268638315,-2500.0,0.00016237,2]
[368658177,1751268638325,-1000.0,0.00016238,2]
[368658178,1751268638334,-7148.93918802,0.0001624,2]
[368658179,1751268638343,-1211.0,0.00016314,2]
[368658180,1751268638353,-1656.4493,0.00016324,2]
[368658181,1751268638362,-1076.8054471,0.00016337,5]
[368658182,1751268638372,-492.07968036,0.00016338,2]
[368658183,1751268638381,-160.93505733,0.00016338,2]
[368658184,1751268638391,-183.08622295,0.00016338,2]
[368658185,1751268638401,-5000.0,0.00016338,2]
[368658186,1751268638410,-78887.2423851,0.00016338,2]
[368658187,1751268638433,-10000.7576149,0.00016338,2]
[368658188,1751268638442,-150.0,0.0001634,2]
[368658189,1751268638452,-7148.93918793,0.00016342,2]
[368658190,1751268638462,-6798.11737944,0.00016346,2]
[368658191,1751268638471,-1211.0,0.00016365,2]
[368658192,1751268638480,-2505.3929474,0.00016435,2]
[368658193,1751268638490,-9699.40005179,0.00016437,2]
[368658194,1751268638502,-16764.96912182,0.00016437,2]
[368658195,1751268638622,-319.10842981,0.00016437,2]
[368658196,1751268638633,-4204.82971731,0.00016437,2]
[368658197,1751268638652,-3784.88037084,0.00016437,2]
[368658198,1751268638767,-4242.52064781,0.00016437,2]
[368658205,1751268638896,-3160.49299523,0.00016437,2]
[368658359,1751268640573,-184.35328092,0.00014657,2]
[368658361,1751268640587,-27786.14629632,0.00016437,2]
[368658363,1751268640596,-224.5935595,0.00016437,2]
[368658365,1751268640606,-500.0,0.00016437,2]
[368658367,1751268640616,-500.0,0.00016437,2]
[368658369,1751268640626,-238.9772851,0.00016437,2]
[368658371,1751268640636,-500.0,0.00016437,2]
[368658373,1751268640645,-500.0,0.00016437,2]
[368658375,1751268640657,-500.0,0.00016437,2]
[368658377,1751268640666,-456.00959566,0.00016437,2]
[368658379,1751268640676,-500.0,0.00016437,2]
[368658381,1751268640685,-500.0,0.00016437,2]
[368658383,1751268640698,-416.01047698,0.00016437,2]
[368658385,1751268640708,-500.0,0.00016437,2]
[368658387,1751268640717,-500.0,0.00016437,2]
[368658389,1751268640727,-500.0,0.00016437,2]
[368658391,1751268640736,-1835.12431109,0.00016437,2]
[368658394,1751268640749,-437.78,0.00016437,2]
[368658395,1751268640762,-2559.12482216,0.00016437,2]
[368658396,1751268640799,-3524.80298336,0.00016437,2]
[368658397,1751268640809,-18007.19701664,0.00016437,2]
[368658398,1751268640821,-329.57339724,0.00016437,2]
[368658399,1751268640832,-940.0,0.00016437,2]
[368658400,1751268640869,-1405.381095,0.00016437,2]
[368658674,1751268645218,-647.26122682,0.00016437,2]
[368658675,1751268645271,-13913.20664102,0.00016437,2]
[368658684,1751268646209,-494.02,0.00016437,2]
[368658685,1751268646221,-17670.17163859,0.00016437,2]
[368658686,1751268646399,-184.35328092,0.00014696,2]
[368658687,1751268646408,-7124.64525614,0.00016437,2]
[368658688,1751268646709,-4407.08392671,0.00016437,2]
[368658715,1751268647459,480.571873,0.00022001,29]
[368658716,1751268656240,211.12719,0.00022001,29]
[368658718,1751268676010,237.202503,0.00022001,29]
[368658719,1751268693511,199.243273,0.00022001,29]
[368658722,1751268983874,200.0,0.00014808,7]
[368658729,1751269076070,3079.89500136,0.000141,2]
[368658732,1751269160782,416.11,0.00013699,2]
[368658735,1751269255189,527.0,0.00013273,2]
[368658741,1751269420640,173.36,0.00011792,2]
[368658743,1751269589832,-166.43818999,0.00014273,2]
[368658744,1751269589866,-1000.0,0.00014665,4]
[368658745,1751269589897,-250.0,0.0001473,2]
[368658746,1751269589929,-1301.76,0.00014746,2]
[368658747,1751269589960,-167.41,0.00014756,2]
[368658748,1751269589989,-200.0,0.00014763,2]
[368658749,1751269590023,-408.54,0.00014785,2]
[368658750,1751269590051,-947.09,0.00014802,2]
[368658751,1751269590081,-1200.0,0.00014806,2]
[368658752,1751269590110,-300.0,0.00014806,2]
[368658753,1751269590141,-8522.76181001,0.00014807,2]
[368658765,1751269832609,-435.33589795,0.00014776,2]
[368658779,1751269838413,-564.66410205,0.00014776,2]
[368658780,1751269838423,-202.6,0.00014787,2]
[368658781,1751269838432,-438.25,0.00014797,2]
[368658782,1751269838441,-144.59560595,0.000148,2]
[368658783,1751269838491,-155.40439405,0.000148,2]
[368658784,1751269838502,-991.29560597,0.000148,2]
[368658785,1751269838515,-208.70439403,0.000148,2]
[368658786,1751269838525,-5330.08338715,0.00014801,2]
[368658787,1751269838560,-6716.20566834,0.00014801,2]
[368658990,1751269840694,-593.6592242,0.00014801,2]
[368658992,1751269840705,-1573.45796344,0.00014801,2]
[368658994,1751269840718,-1155.00000005,0.00014801,2]
[368658997,1751269840729,-1082.64833014,0.00014801,2]
[368659011,1751269840921,-969.62479903,0.00014801,2]
[368659012,1751269840952,-920.0218938,0.00014801,2]
[368659013,1751269840964,-1156.2,0.00014801,2]
[368659014,1751269840975,-77234.78078134,0.00014801,2]
[368659015,1751269841027,-93422.99917701,0.00014801,2]
[368659016,1751269841037,-1000.0,0.00014806,2]
[368659017,1751269841046,-15377.23818999,0.00014807,2]
[368659018,1751269841056,-200.0,0.00014811,2]
[368659019,1751269841066,-662.47,0.00014827,2]
[368659020,1751269841077,-150.0,0.00014973,2]
[368659021,1751269841087,-490.0,0.00015095,2]
[368659022,1751269841097,-30939.13615679,0.00015096,2]
[368659023,1751269841107,-1000.0,0.00015173,4]
[368659024,1751269841116,-167.76,0.00015213,2]
[368659025,1751269841126,-166.78,0.00015314,2]
[368659026,1751269841136,-175.0,0.00015379,2]
[368659027,1751269841146,-313.0,0.00015471,2]
[368659028,1751269841156,-1700.0,0.000155,5]
[368659029,1751269841166,-1753.0,0.00015519,2]
[368659030,1751269841175,-542.0,0.00015557,2]
[368659031,1751269841186,-913.0,0.00015557,2]
[368659032,1751269841196,-438.25,0.0001559,2]
[368659033,1751269841205,-3500.0,0.000156,5]
[368659034,1751269841215,-553.0,0.0001565,2]
[368659035,1751269841225,-415.14274842,0.00015688,2]
[368659036,1751269841234,-500.0,0.00015688,2]
[368659037,1751269841244,-500.0,0.00015688,2]
[368659038,1751269841254,-485.7054314,0.00015688,2]
[368659039,1751269841264,-5200.0,0.000157,5]
[368659041,1751269841273,-4761.25900091,0.000157,2]
[368659043,1751269841283,-250.0,0.000157,2]
[368659044,1751269841293,-1000.0,0.000157,4]
[368659045,1751269841302,-300.0,0.000157,2]
[368659046,1751269841311,-1000.0,0.000157,4]
[368659047,1751269841321,-190.46,0.00015717,2]
[368659048,1751269841331,-190.46,0.00015721,2]
[368659050,1751269841341,-190.46,0.00015725,2]
[368659052,1751269841350,-190.46,0.00015729,2]
[368659054,1751269841360,-190.46,0.00015733,2]
[368659056,1751269841370,-190.46,0.00015738,2]
[368659058,1751269841380,-190.46,0.00015742,2]
[368659060,1751269841389,-190.46,0.00015746,2]
[368659062,1751269841399,-190.46,0.0001575,2]
[368659064,1751269841408,-190.46,0.00015754,2]
[368659066,1751269841417,-190.46,0.00015758,2]
[368659068,1751269841427,-190.46,0.00015762,2]
[368659070,1751269841436,-190.46,0.00015767,2]
[368659072,1751269841446,-190.46,0.00015771,2]
[368659074,1751269841455,-190.46,0.00015775,2]
[368659076,1751269841464,-190.46,0.00015779,2]
[368659078,1751269841474,-190.46,0.00015783,2]
[368659080,1751269841484,-190.46,0.00015787,2]
[368659082,1751269841495,-190.46,0.00015791,2]
[368659084,1751269841504,-190.46,0.00015795,2]
[368659086,1751269841514,-7000.0,0.000158,5]
[368659088,1751269841525,-167.76,0.00015841,2]
[368659090,1751269841535,-504.0,0.00015867,2]
[368659092,1751269841547,-2692.01818048,0.0001587,4]
[368659094,1751269841556,-438.25,0.00015889,2]
[368659096,1751269841566,-200.9556,0.0001589,2]
[368659098,1751269841575,-1000.0,0.00015892,2]
[368659100,1751269841584,-2637.2081,0.00015892,2]
[368659102,1751269841594,-272.9218,0.00015892,2]
[368659105,1751269841604,-6778.5294,0.00015892,2]
[368659106,1751269841613,-7279.92151259,0.00015898,2]
[368659109,1751269841622,-1000.0,0.00015899,2]
[368659111,1751269841632,-199.94812251,0.00015899,2]
[368659113,1751269841642,-198.2197197,0.00015899,2]
[368659115,1751269841651,-5000.0,0.000159,2]
[368659117,1751269841661,-1962.1004,0.000159,2]
[368659119,1751269841670,-6036.12734765,0.000159,5]
[368659140,1751269841905,-924.5589717,0.000159,5]
[368659141,1751269841917,-378.925,0.000159,5]
[368659142,1751269841929,-1360.38868065,0.000159,5]
[368659143,1751269841938,-229.42145203,0.00015916,2]
[368659144,1751269841948,-545.61836987,0.00015919,2]
[368659145,1751269841957,-162.66463904,0.00015919,2]
[368659146,1751269841967,-169.47407931,0.00015927,2]
[368659147,1751269841976,-500.0,0.00015973,2]
[368659148,1751269841986,-500.0,0.00015973,2]
[368659149,1751269841995,-500.0,0.00015973,2]
[368659150,1751269842005,-160.23344001,0.00015973,2]
[368659151,1751269842014,-4761.19,0.00015973,2]
[368659152,1751269842023,-7279.92151257,0.00015981,2]
[368659153,1751269842033,-167.41,0.00015986,2]
[368659154,1751269842044,-438.25,0.00015988,2]
[368659155,1751269842053,-438.25,0.00015988,2]
[368659156,1751269842062,-372.05,0.00015989,3]
[368659157,1751269842072,-941.47701044,0.0001599,2]
[368659158,1751269842082,-151.65,0.0001599,2]
[368659160,1751269842092,-151.65,0.0001599,2]
[368659162,1751269842102,-151.65,0.0001599,2]
[368659164,1751269842111,-151.65,0.0001599,2]
[368659166,1751269842121,-151.65,0.0001599,2]
[368659168,1751269842131,-342.97251366,0.00015992,2]
[368659170,1751269842140,-207.4,0.00015992,2]
[368659172,1751269842150,-165.02830242,0.00015992,2]
[368659210,1751269846102,-490.0,0.00015095,2]
[368659211,1751269846112,-334.97169758,0.00015992,2]
[368659212,1751269846122,-500.0,0.00015992,2]
[368659213,1751269846132,-500.0,0.00015992,2]
[368659214,1751269846141,-160.0,0.00015992,2]
[368659215,1751269846151,-500.0,0.00015992,2]
[368659216,1751269846160,-406.87628912,0.00015992,2]
[368659217,1751269846170,-500.0,0.00015992,2]
[368659218,1751269846180,-1773.59082113,0.00015992,2]
[368659231,1751269846887,-5139.05117887,0.00015992,2]
[368659232,1751269846896,-500.0,0.00015992,2]
[368659233,1751269846907,-500.0,0.00015992,2]
[368659234,1751269846918,-500.0,0.00015992,2]
[368659235,1751269846928,-18.10737123,0.00015992,2]
[368659239,1751270109741,195.99314683,0.0001451,7]
[368659241,1751270192830,395.3,0.00013699,2]
[368659254,1751270335236,519.0,0.00013867,2]
[368659263,1751270733253,150.0,0.00014103,4]
[368659272,1751270791955,1616.88537068,0.0002,30]
[368659273,1751270831323,1075.1363935,0.000141,2]
[368659276,1751271031558,-155.09,0.00014122,2]
[368659277,1751271031569,-155.09,0.0001413,2]
[368659278,1751271031580,-155.09,0.00014138,2]
[368659279,1751271031591,-155.09,0.00014146,2]
[368659280,1751271031602,-155.09,0.00014154,2]